bitfinex/quotes_SOLUSD_20220226
["timestamp","ask_amount","ask_price","bid_price","bid_amount"]
[1645876699205,4.408,90.763,90.683,22.8137]
[1645876699409,1.7289913,90.763,90.683,22.8137]
[1645876699606,16.5455,90.76,90.683,22.8137]
[1645876699805,3.55660952,90.758,90.683,22.8137]
[1645876700206,5.42591258,90.758,90.683,22.8137]
[1645876700405,4.408,90.757,90.683,22.8137]
[1645876700607,5.42591258,90.758,90.683,22.8137]
[1645876700805,16.5463,90.75,90.683,22.8137]
[1645876701006,1.80953383,90.749,90.683,22.8137]
[1645876721851,1.59063457,90.756,90.683,22.8137]
[1645876723551,4.409,90.755,90.683,22.8137]
[1645876723751,1.59063457,90.756,90.683,22.8137]
[1645876724352,4.409,90.755,90.683,22.8137]
[1645876725154,1.59063457,90.756,90.683,22.8137]
[1645876726255,4.409,90.755,90.683,22.8137]
[1645876726457,1.59063457,90.756,90.683,22.8137]
[1645876727763,1.59063457,90.756,90.683,28.1637]
[1645876727963,4.409,90.793,90.692,115.0]
[1645876728162,1.55195482,90.808,90.694,2.40331985]
[1645876728364,1.55195482,90.808,90.701,176.33]
[1645876728560,1.93930658,90.831,90.711,110.1]
[1645876728764,24.5675,90.866,90.715,110.1]
[1645876728963,24.5675,90.866,90.721,110.1]
[1645876729162,1.74950347,90.865,90.732,2.19638955]
[1645876729363,1.74950347,90.865,90.734,2.18398581]
[1645876729562,4.405,90.864,90.735,0.25]
[1645876729762,15.63297078,90.863,90.741,176.33]
[1645876729966,15.63297078,90.863,90.751,110.1]
[1645876730162,14.05199279,90.862,90.753,110.1]
[1645876730361,14.05199279,90.862,90.754,2.92596596]
[1645876730562,9.64799279,90.861,90.754,2.92596596]
[1645876730764,9.64799279,90.861,90.755,124.2156449]
[1645876730965,9.64799279,90.861,90.756,2.44804138]
[1645876731163,0.25,90.86,90.771,60.62930863]
[1645876731765,9.64799279,90.859,90.771,60.62930863]
[1645876733267,9.64799279,90.859,90.772,110.1]
[1645876733472,9.64799279,90.859,90.791,110.1]
[1645876733767,0.25,90.86,90.791,110.1]
[1645876734466,0.25,90.86,90.8,16.5217]
[1645876734667,0.25,90.86,90.801,56.00254441]
[1645876736466,0.25,90.86,90.81,16.5205]
[1645876737895,0.25,90.86,90.811,110.1]
[1645876738096,0.25,90.86,90.82,16.5172]
[1645876738295,0.25,90.86,90.821,110.1]
[1645876738495,0.25,90.86,90.821,115.93]
[1645876738901,0.25,90.86,90.821,5.83]
[1645876739297,0.25,90.86,90.82,15.91]
[1645876739699,0.25,90.86,90.811,22.5811]
[1645876741310,0.25,90.86,90.731,66.23]
[1645876741311,0.25,90.86,90.78,15.91]
[1645876741504,16.7764,90.86,90.77,16.526]
[1645876741702,1.53466095,90.859,90.771,23.4447]
[1645876742302,2.09453805,90.858,90.793,48.79446754]
[1645876743304,16.5273,90.85,90.793,48.79446754]
[1645876743504,1.71212582,90.849,90.793,48.79446754]
[1645876743806,1.71212582,90.849,90.78,16.5257]
[1645876744006,1.71212582,90.849,90.771,23.4447]
[1645876745806,16.5293,90.84,90.771,23.4447]
[1645876746006,1.69560668,90.839,90.771,23.4447]
[1645876746816,66.23,90.828,90.731,4.405]
[1645876747009,110.1,90.825,90.721,47.7667]
[1645876747209,1.50561819,90.824,90.721,47.7667]
[1645876747409,4.406,90.823,90.721,47.7667]
[1645876747609,13.62164401,90.822,90.722,54.07351618]
[1645876747811,6.21187419,90.821,90.722,54.07351618]
[1645876748110,6.21187419,90.821,90.722,58.47951618]
[1645876748308,6.21187419,90.821,90.722,54.07351618]
[1645876748508,4.406,90.821,90.73,16.5349]
[1645876748708,1.78098985,90.821,90.73,16.5349]
[1645876749109,1.78098985,90.821,90.731,4.406]
[1645876749309,1.78098985,90.821,90.731,7.26892427]
[1645876749511,1.78098985,90.821,90.732,2.86292427]
[1645876749710,1.78098985,90.821,90.733,4.406]
[1645876749911,1.78098985,90.821,90.733,114.506]
[1645876750111,1.78098985,90.821,90.734,2.86292427]
[1645876750314,1.78098985,90.821,90.735,4.406]
[1645876750511,1.78098985,90.821,90.741,110.1]
[1645876750709,1.78098985,90.821,90.742,4.406]
[1645876751614,0.25,90.82,90.743,2.86292427]
[1645876751811,4.406,90.839,90.751,110.1]
[1645876752013,1.8404089,90.857,90.753,110.1]
[1645876752212,4.405,90.856,90.755,110.1]
[1645876752612,13.86438696,90.855,90.757,110.1]
[1645876752813,13.86438696,90.855,90.758,4.404]
[1645876753012,1.80584143,90.854,90.758,117.36692427]
[1645876753215,1.80584143,90.854,90.759,2.86292427]
[1645876753414,1.80584143,90.854,90.76,4.404]
[1645876753716,1.80584143,90.854,90.77,16.5274]
[1645876753916,1.80584143,90.854,90.771,24.4431]
[1645876754117,0.25,90.853,90.771,24.4431]
[1645876754317,4.404,90.852,90.771,24.4431]
[1645876754620,1.80584143,90.854,90.771,24.4431]
[1645876754816,4.404,90.853,90.771,24.4431]
[1645876755818,0.25,90.852,90.771,24.4431]
[1645876756919,16.5273,90.85,90.771,24.4431]
[1645876757116,1.52780277,90.849,90.771,24.4431]
[1645876757517,1.52780277,90.849,90.78,16.5258]
[1645876757720,1.5683671,90.854,90.78,16.5258]
[1645876759719,0.25,90.853,90.78,16.5258]
[1645876760820,16.5268,90.85,90.78,16.5258]
[1645876761021,1.75293357,90.849,90.78,16.5258]
[1645876765245,1.75293357,90.849,90.78,32.4358]
[1645876765446,0.25,90.853,90.78,32.4358]
[1645876765447,0.25,90.853,90.781,110.1]
[1645876765647,0.25,90.853,90.8,16.5223]
[1645876765846,0.25,90.853,90.801,55.63219681]
[1645876773660,0.25,90.853,90.793,22.7292]
[1645876774761,0.25,90.853,90.794,48.71274696]
[1645876776765,0.25,90.853,90.793,22.7292]
[1645876776964,16.527,90.85,90.793,22.7292]
[1645876777165,6.3954905,90.849,90.793,22.7292]
[1645876777365,4.404,90.849,90.793,22.7292]
[1645876777563,4.404,90.852,90.793,22.7292]
[1645876778265,0.25,90.853,90.783,24.9533]
[1645876778465,16.529,90.84,90.783,24.9533]
[1645876778764,1.6614686,90.839,90.783,24.9533]
[1645876781365,1.6614686,90.839,90.762,24.2598]
[1645876781568,4.404,90.852,90.762,24.2598]
[1645876781569,1.90397119,90.829,90.762,24.2598]
[1645876781766,4.405,90.828,90.761,4.404]
[1645876782166,4.405,90.835,90.761,4.404]
[1645876782567,9.16799114,90.834,90.744,51.31613054]
[1645876782868,1.59071999,90.833,90.744,51.31613054]
[1645876783069,15.91,90.83,90.744,51.31613054]
[1645876783269,6.01600314,90.829,90.744,51.31613054]
[1645876783573,3.75586485,90.819,90.744,51.31613054]
[1645876783768,1.9919522,90.817,90.744,51.31613054]
[1645876784871,1.9919522,90.817,90.74,16.5317]
[1645876785273,16.534,90.81,90.734,22.6134]
[1645876785472,135.224,90.81,90.711,23.4909]
[1645876785678,15.66930432,90.809,90.711,23.4909]
[1645876785973,1.55905008,90.808,90.711,23.4909]
[1645876786172,4.407,90.807,90.711,23.4909]
[1645876786376,1.96225135,90.805,90.711,23.4909]
[1645876786580,4.407,90.804,90.711,23.4909]
[1645876787475,16.5399,90.78,90.711,23.4909]
[1645876787676,14.85391469,90.779,90.711,23.4909]
[1645876787874,1.98998774,90.778,90.711,23.4909]
[1645876790477,1.98998774,90.778,90.711,26.35382427]
[1645876792278,1.98998774,90.778,90.711,23.4909]
[1645876801421,1.98998774,90.778,90.711,23.32245]
[1645876801625,1.98998774,90.778,90.68,15.91]
[1645876801812,16.5416,90.77,90.678,23.5944]
[1645876802012,1.49238557,90.769,90.678,23.5944]
[1645876802212,4.409,90.768,90.678,23.5944]
[1645876802612,4.409,90.777,90.668,24.87571481]
[1645876802912,16.5445,90.76,90.67,16.5447]
[1645876803111,6.25921314,90.759,90.67,16.5447]
[1645876803312,4.409,90.759,90.67,16.5447]
[1645876803514,4.409,90.767,90.67,16.5447]
[1645876803718,1.94623548,90.765,90.67,16.5447]
[1645876803920,4.409,90.764,90.67,16.5447]
[1645876804115,6.35523548,90.765,90.67,16.5447]
[1645876804517,1.85540259,90.749,90.67,16.5447]
[1645876804718,1.79879729,90.747,90.669,22.571]
[1645876805321,2.8437392,90.746,90.67,52.1832263]
[1645876806123,2.8437392,90.746,90.671,2.86292427]
[1645876806322,2.8437392,90.746,90.67,52.1832263]
[1645876806524,1.97115241,90.739,90.67,52.1832263]
[1645876806919,1.57376299,90.747,90.67,52.1832263]
[1645876807125,22.928,90.748,90.671,2.86292427]
[1645876807319,22.928,90.748,90.671,27.73863908]
[1645876807519,22.928,90.748,90.69,16.5403]
[1645876807819,1.93881336,90.767,90.69,16.5403]
[1645876808018,1.66438632,90.757,90.691,23.8399]
[1645876808218,0.25,90.756,90.691,23.8399]
[1645876808819,0.25,90.756,90.7,16.5404]
[1645876809219,1.46888874,90.766,90.7,16.5404]
[1645876809620,1.68623282,90.764,90.701,58.6783125]
[1645876810626,0.25,90.763,90.71,16.5386]
[1645876810821,24.5251,90.767,90.71,25.0786]
[1645876811022,4.408,90.804,90.71,40.9886]
[1645876811222,1.51093983,90.824,90.711,27.63962427]
[1645876811626,1.48181043,90.807,90.712,2.86292427]
[1645876811822,1.48181043,90.807,90.73,16.5335]
[1645876812021,1.48181043,90.807,90.731,50.62599972]
[1645876812522,15.59251567,90.808,90.731,50.62599972]
[1645876812721,15.59251567,90.808,90.731,74.20049972]
[1645876813125,15.59251567,90.808,90.732,110.1]
[1645876813622,1.88195657,90.819,90.74,16.5319]
[1645876813821,20.52206234,90.839,90.74,16.5319]
[1645876813822,1.76060826,90.837,90.75,15.91]
[1645876814022,1.76060826,90.837,90.751,24.3608]
[1645876814624,2.02719,90.835,90.771,52.63669238]
[1645876814824,2.02719,90.835,90.771,60.28669238]
[1645876815224,11.87548433,90.836,90.771,60.28669238]
[1645876815626,16.5273,90.85,90.78,16.5258]
[1645876815825,2.00461807,90.855,90.78,16.5258]
[1645876816126,9.58075608,90.854,90.791,110.1]
[1645876816348,9.58075608,90.854,90.801,110.1]
[1645876816529,1.92055652,90.901,90.801,110.1]
[1645876816732,15.53820463,90.87,90.81,16.5163]
[1645876817028,15.53820463,90.87,90.802,101.98911487]
[1645876817029,1.66666055,90.869,90.802,101.98911487]
[1645876817426,9.58031447,90.868,90.802,101.98911487]
[1645876817726,0.25,90.867,90.802,101.98911487]
[1645876817926,4.402,90.866,90.802,101.98911487]
[1645876818327,11.59204123,90.865,90.802,101.98911487]
[1645876818527,4.402,90.864,90.802,101.98911487]
[1645876818728,1.64252117,90.863,90.802,101.98911487]
[1645876818928,1.63419146,90.863,90.802,101.98911487]
[1645876819130,0.25,90.867,90.802,101.98911487]
[1645876819630,9.57908596,90.866,90.802,101.98911487]
[1645876821432,9.57908596,90.866,90.802,45.7979]
[1645876822433,9.57908596,90.866,90.803,43.20900517]
[1645876822732,0.25,90.867,90.803,43.20900517]
[1645876823334,0.25,90.867,90.802,45.7979]
[1645876824357,21.00224211,90.866,90.802,45.7979]
[1645876824560,1.8505334,90.865,90.802,45.7979]
[1645876826856,1.8505334,90.865,90.803,55.71379908]
[1645876827255,0.25,90.867,90.803,55.71379908]
[1645876828361,0.25,90.867,90.804,110.1]
[1645876828556,0.25,90.867,90.804,2.86292427]
[1645876829156,2.02199297,90.896,90.804,112.96292427]
[1645876829358,6.23915001,90.918,90.811,110.1]
[1645876829559,9.57690965,90.895,90.82,15.91]
[1645876830057,13.26131319,90.894,90.821,2.86292427]
[1645876830457,9.82690965,90.893,90.83,16.5149]
[1645876830657,11.65930919,90.893,90.831,47.73331798]
[1645876830859,0.25,90.893,90.831,47.73331798]
[1645876832071,15.39913155,90.918,90.831,47.73331798]
[1645876832266,15.39913155,90.918,90.841,110.1]
[1645876832458,9.57195171,90.917,90.841,110.1]
[1645876832858,9.57195171,90.918,90.842,2.86292427]
[1645876833059,14.36318574,90.917,90.842,2.86292427]
[1645876833359,9.57195171,90.918,90.841,133.2616]
[1645876834166,13.42783141,90.917,90.841,133.2616]
[1645876834561,13.42783141,90.917,90.861,49.11330484]
[1645876835760,1.72904127,90.916,90.85,16.5128]
[1645876835961,1.72904127,90.916,90.83,15.91]
[1645876835962,1.6882701,90.915,90.83,15.91]
[1645876836260,5.87999784,90.914,90.812,24.3582]
[1645876836459,8.98942779,90.914,90.812,24.3582]
[1645876836659,1.8019715,90.913,90.812,24.3582]
[1645876836860,9.56006989,90.912,90.813,46.66151405]
[1645876837059,37.60192697,90.912,90.813,46.66151405]
[1645876837261,13.95107566,90.911,90.813,46.66151405]
[1645876837559,1.76054576,90.909,90.82,16.518]
[1645876837762,4.402,90.908,90.813,46.66151405]
[1645876837960,29.63996266,90.908,90.813,46.66151405]
[1645876838158,14.18017408,90.907,90.813,46.66151405]
[1645876838358,6.15715604,90.906,90.813,46.66151405]
[1645876838560,1.80206509,90.905,90.813,46.66151405]
[1645876838760,4.402,90.904,90.813,46.66151405]
[1645876838960,1.94630177,90.903,90.813,46.66151405]
[1645876839161,4.402,90.902,90.813,46.66151405]
[1645876839361,16.69550385,90.902,90.813,46.66151405]
[1645876839561,4.26933654,90.889,90.813,46.66151405]
[1645876840963,16.5203,90.89,90.813,46.66151405]
[1645876841162,1.98377881,90.899,90.813,46.66151405]
[1645876841561,1.68947052,90.909,90.813,46.66151405]
[1645876842062,17.60098883,90.908,90.814,112.96292427]
[1645876842364,1.78059982,90.907,90.815,2.86292427]
[1645876842562,1.78059982,90.907,90.82,16.518]
[1645876842763,1.78059982,90.907,90.82,32.428]
[1645876843163,0.25,90.906,90.82,32.428]
[1645876843665,0.25,90.906,90.82,142.528]
[1645876844064,0.25,90.906,90.82,32.428]
[1645876844465,16.5177,90.9,90.82,32.428]
[1645876844666,1.51311194,90.899,90.82,32.428]
[1645876846872,16.5194,90.89,90.82,32.428]
[1645876847070,1.56816025,90.889,90.813,46.66151405]
[1645876847270,4.402,90.888,90.813,46.66151405]
[1645876847473,6.27341177,90.888,90.813,46.66151405]
[1645876847671,9.00684573,90.888,90.813,46.66151405]
[1645876847872,2.73343396,90.887,90.813,46.66151405]
[1645876848072,4.31967268,90.887,90.813,46.66151405]
[1645876848271,4.402,90.886,90.813,46.66151405]
[1645876848472,16.5241,90.87,90.813,46.66151405]
[1645876848673,3.15424413,90.869,90.813,46.66151405]
[1645876849073,3.15424413,90.869,90.812,24.3582]
[1645876849273,7.13543396,90.868,90.765,16.8063]
[1645876849480,24.6001,90.867,90.766,23.4748]
[1645876849674,1.99931005,90.866,90.767,4.404]
[1645876850102,4.404,90.865,90.768,45.57026597]
[1645876850574,1.62275288,90.859,90.77,16.5278]
[1645876850773,4.404,90.858,90.77,16.5278]
[1645876851174,6.31890234,90.864,90.77,16.5278]
[1645876852579,16.5269,90.85,90.77,16.5278]
[1645876852776,1.69038275,90.849,90.77,16.5278]
[1645876854677,16.5284,90.84,90.77,16.5278]
[1645876854977,1.92765057,90.838,90.77,16.5278]
[1645876857881,16.5304,90.83,90.768,45.57026597]
[1645876858077,1.49957767,90.829,90.768,45.57026597]
[1645876858680,1.49957767,90.829,90.766,23.4748]
[1645876858881,16.5321,90.82,90.741,4.405]
[1645876859079,1.72435675,90.819,90.721,4.406]
[1645876859378,4.406,90.828,90.715,4.406]
[1645876859580,20.315,90.83,90.715,4.406]
[1645876859779,1.61483375,90.829,90.747,54.1643373]
[1645876859980,4.405,90.828,90.747,54.1643373]
[1645876860180,1.61483375,90.829,90.747,54.1643373]
[1645876860382,16.5351,90.81,90.747,54.1643373]
[1645876860681,2.85896073,90.809,90.747,44.1643373]
[1645876861281,1.23467467,90.809,90.747,44.1643373]
[1645876862582,16.5359,90.8,90.73,16.5348]
[1645876862784,1.98402763,90.799,90.716,4.406]
[1645876863087,8.88032624,90.808,90.715,22.6704]
[1645876863283,7.14043396,90.808,90.715,22.6704]
[1645876863483,2.01301177,90.806,90.716,47.70755166]
[1645876863683,4.407,90.805,90.716,47.70755166]
[1645876863883,16.5378,90.79,90.716,47.70755166]
[1645876864083,23.68085889,90.789,90.716,47.70755166]
[1645876864284,1.59757003,90.788,90.716,47.70755166]
[1645876865283,1.59757003,90.788,90.72,16.5367]
[1645876865485,1.52974546,90.806,90.72,126.6367]
[1645876865687,1.52974546,90.806,90.721,4.407]
[1645876866487,18.76689645,90.805,90.73,126.6345]
[1645876866685,1.63738054,90.804,90.732,57.87692633]
[1645876866986,0.25,90.803,90.732,57.87692633]
[1645876867885,16.5362,90.8,90.732,57.87692633]
[1645876868287,1.53796818,90.799,90.732,57.87692633]
[1645876869586,8.6109957,90.789,90.732,57.87692633]
[1645876870894,1.63422063,90.789,90.732,57.87692633]
[1645876871987,18.04543815,90.788,90.732,57.87692633]
[1645876872186,1.58768292,90.787,90.732,57.87692633]
[1645876878292,0.25,90.786,90.732,57.87692633]
[1645876878993,16.5396,90.78,90.731,23.1303]
[1645876879193,1.6698691,90.779,90.731,23.1303]
[1645876879696,1.6698691,90.779,90.715,22.6704]
[1645876879896,7.91,90.779,90.715,22.6704]
[1645876880128,7.91,90.779,90.66,71.0527]
[1645876880129,1.54172347,90.769,90.66,71.0527]
[1645876880299,4.408,90.768,90.661,48.9692]
[1645876880504,7.14143396,90.768,90.661,48.9692]
[1645876880703,2.73343396,90.767,90.661,48.9692]
[1645876880903,4.408,90.766,90.661,48.9692]
[1645876881099,7.69823337,90.765,90.691,58.73114956]
[1645876881303,4.408,90.764,90.691,58.73114956]
[1645876881499,9.11334927,90.764,90.691,58.73114956]
[1645876881699,2.73343396,90.763,90.691,58.73114956]
[1645876881900,4.408,90.762,90.691,58.73114956]
[1645876882100,4.408,90.762,90.661,48.9692]
[1645876882300,7.14128075,90.762,90.661,48.9692]
[1645876882501,1.82332436,90.749,90.67,16.5458]
[1645876882701,10.54332436,90.749,90.67,16.5458]
[1645876883302,1.80055506,90.747,90.685,51.27697511]
[1645876883502,1.80055506,90.747,90.686,24.5214]
[1645876884804,10.33055506,90.747,90.686,24.5214]
[1645876887625,16.5469,90.74,90.686,24.5214]
[1645876887824,1.49237156,90.739,90.686,24.5214]
[1645876888124,1.49237156,90.739,90.662,4.409]
[1645876888425,1.58735295,90.737,90.661,24.7547]
[1645876888724,4.41,90.736,90.661,24.7547]
[1645876888925,4.41,90.736,90.662,44.23172223]
[1645876889525,7.69823337,90.729,90.662,44.23172223]
[1645876889726,9.33622975,90.729,90.661,24.7547]
[1645876889925,1.92592769,90.728,90.661,24.7547]
[1645876890525,2.73321525,90.727,90.661,24.7547]
[1645876890725,2.73321525,90.727,90.661,79.6861934]
[1645876891431,1.92592769,90.728,90.661,79.6861934]
[1645876891635,16.5519,90.72,90.661,79.6861934]
[1645876891829,1.50201085,90.719,90.661,79.6861934]
[1645876892127,1.50201085,90.719,90.661,54.9314934]
[1645876897133,7.69823337,90.729,90.661,54.9314934]
[1645876898133,0.25,90.728,90.661,54.9314934]
[1645876898336,7.56,90.728,90.661,54.9314934]
[1645876898536,9.34385231,90.728,90.661,54.9314934]
[1645876898941,1.49475005,90.719,90.661,54.9314934]
[1645876900539,1.49475005,90.719,90.652,23.368]
[1645876900739,1.48843742,90.709,90.652,23.368]
[1645876900940,8.69843742,90.709,90.652,23.368]
[1645876901140,7.21,90.709,90.652,23.368]
[1645876901739,18.04543815,90.708,90.652,23.368]
[1645876901942,1.69961646,90.707,90.652,23.368]
[1645876902541,16.5544,90.7,90.652,23.368]
[1645876902938,16.5544,90.7,90.632,69.44190458]
[1645876903339,1.5623601,90.699,90.632,69.44190458]
[1645876903742,23.8723,90.707,90.64,16.5514]
[1645876906342,1.57231305,90.712,90.641,110.1]
[1645876906545,23.2101,90.729,90.651,110.1]
[1645876906749,23.2101,90.729,90.652,23.3311]
[1645876907448,21.31793148,90.728,90.653,55.69968104]
[1645876907846,0.25,90.727,90.653,55.69968104]
[1645876908445,2.06185915,90.727,90.66,16.5468]
[1645876909845,2.06185915,90.727,90.653,55.69968104]
[1645876911145,16.5506,90.72,90.653,55.69968104]
[1645876911354,1.53688655,90.719,90.653,55.69968104]
[1645876911744,1.53688655,90.719,90.652,23.3311]
[1645876914552,16.5523,90.71,90.652,23.3311]
[1645876915049,1.68620542,90.709,90.652,23.3311]
[1645876915652,4.42574004,90.708,90.652,23.3311]
[1645876917057,16.5544,90.7,90.61,15.91]
[1645876917255,1.51928084,90.699,90.611,24.8593]
[1645876917454,4.25249609,90.699,90.611,24.8593]
[1645876917658,20.85320302,90.698,90.611,24.8593]
[1645876917853,1.81491025,90.697,90.611,24.8593]
[1645876918052,4.41,90.696,90.611,79.04418275]
[1645876918253,66.23,90.695,90.611,79.04418275]
[1645876918456,16.5597,90.68,90.611,79.04418275]
[1645876918656,6.47766679,90.679,90.611,79.04418275]
[1645876919054,6.47766679,90.679,90.611,24.8593]
[1645876919255,68.96321525,90.678,90.595,47.9642]
[1645876919455,4.412,90.677,90.595,47.9642]
[1645876919658,66.23,90.676,90.595,47.9642]
[1645876919955,1.48822504,90.674,90.595,47.9642]
[1645876920255,1.85698665,90.669,90.596,53.19313762]
[1645876920456,4.62343038,90.679,90.601,2.86292427]
[1645876921058,4.62343038,90.679,90.6,15.91]
[1645876921260,6.27137733,90.679,90.6,32.4688]
[1645876922162,6.27137733,90.679,90.6,16.5588]
[1645876922163,19.82467915,90.678,90.6,16.5588]
[1645876922358,1.78170154,90.677,90.6,16.5588]
[1645876922558,1.56806153,90.675,90.6,16.5588]
[1645876923457,16.5597,90.67,90.6,16.5588]
[1645876924860,1.49171353,90.669,90.6,16.5588]
[1645876925260,1.49171353,90.669,90.596,50.43319062]
[1645876926462,1.49171353,90.669,90.6,16.5587]
[1645876927567,16.5614,90.66,90.595,47.9642]
[1645876927777,1.602511,90.659,90.595,47.9642]
[1645876927964,19.84640777,90.658,90.595,47.9642]
[1645876928465,19.84640777,90.658,90.596,2.86292427]
[1645876928887,19.84640777,90.658,90.595,47.9642]
[1645876929488,19.84640777,90.658,90.6,16.5586]
[1645876931894,0.25,90.657,90.6,16.5586]
[1645876935795,0.25,90.657,90.595,47.9642]
[1645876938197,16.5633,90.65,90.595,47.9642]
[1645876938398,1.63381222,90.649,90.595,47.9642]
[1645876938998,1.97305155,90.647,90.595,47.9642]
[1645876943300,0.25,90.646,90.595,47.9642]
[1645876949711,0.25,90.646,90.562,2.86292427]
[1645876949712,16.5652,90.64,90.562,2.86292427]
[1645876949911,1.50523124,90.639,90.563,24.0007]
[1645876950315,4.75398176,90.645,90.563,24.0007]
[1645876950712,4.414,90.644,90.564,46.72584372]
[1645876951112,114.514,90.644,90.564,46.72584372]
[1645876951316,1.60171831,90.643,90.564,46.72584372]
[1645876951616,7.79391058,90.629,90.564,46.72584372]
[1645876951815,1.48246187,90.627,90.564,46.72584372]
[1645876952015,22.7292,90.628,90.564,46.72584372]
[1645876952411,1.53736799,90.627,90.564,46.72584372]
[1645876953714,1.70683711,90.619,90.563,24.0007]
[1645876953914,4.415,90.618,90.563,24.0007]
[1645876954213,7.66722945,90.627,90.563,24.0007]
[1645876954813,16.5711,90.61,90.563,24.0007]
[1645876955014,19.09838121,90.609,90.563,24.0007]
[1645876955714,1.62422674,90.608,90.563,24.0007]
[1645876956118,16.5722,90.6,90.53,15.91]
[1645876956314,1.50425547,90.599,90.531,23.1402]
[1645876956918,1.50425547,90.599,90.532,49.40955544]
[1645876958819,1.88799049,90.589,90.531,23.1402]
[1645876959018,4.416,90.588,90.531,23.1402]
[1645876959218,21.1353344,90.588,90.531,23.1402]
[1645876959417,26.76617468,90.587,90.521,23.6445]
[1645876959617,6.36290251,90.586,90.521,23.6445]
[1645876959817,8.32141506,90.585,90.521,23.6445]
[1645876960019,6.18727122,90.584,90.521,23.6445]
[1645876960417,15.50749,90.583,90.521,23.6445]
[1645876960619,1.64938571,90.579,90.521,23.6445]
[1645876960821,9.12938571,90.579,90.521,23.6445]
[1645876962017,9.12938571,90.579,90.51,24.2665]
[1645876962218,16.5788,90.57,90.51,24.2665]
[1645876962419,1.74903457,90.569,90.51,24.2665]
[1645876962849,19.09838121,90.568,90.51,24.2665]
[1645876963047,1.50254866,90.567,90.51,24.2665]
[1645876963448,16.581,90.56,90.51,24.2665]
[1645876963847,1.62536528,90.559,90.51,24.2665]
[1645876964850,7.99536528,90.559,90.51,24.2665]
[1645876965048,16.5817,90.55,90.51,24.2665]
[1645876965650,6.30372846,90.552,90.511,55.40668258]
[1645876966348,6.30372846,90.552,90.51,24.2665]
[1645876966557,1.80054952,90.549,90.51,24.2665]
[1645876966757,16.5817,90.55,90.51,24.2665]
[1645876967252,16.5817,90.55,90.511,46.90200667]
[1645876968453,1.5206835,90.549,90.511,46.90200667]
[1645876969150,1.5206835,90.549,90.491,24.3065]
[1645876969353,1.5206835,90.549,90.492,22.9929]
[1645876970254,16.5839,90.54,90.492,22.9929]
[1645876970452,16.5839,90.54,90.41,0.28]
[1645876970453,1.7604134,90.539,90.41,0.28]
[1645876970654,70.648,90.538,90.432,48.0923]
[1645876970855,1.85886186,90.537,90.432,48.0923]
[1645876971057,4.418,90.536,90.432,48.0923]
[1645876971255,19.09838121,90.535,90.433,52.41654349]
[1645876971456,16.5885,90.52,90.44,16.5869]
[1645876971754,7.80786241,90.519,90.44,16.5869]
[1645876971955,22.8262,90.518,90.44,16.5869]
[1645876972155,1.53684862,90.517,90.44,16.5869]
[1645876973560,22.8262,90.518,90.44,16.5869]
[1645876974057,19.98867516,90.517,90.441,110.1]
[1645876974257,1.7702752,90.516,90.45,16.5853]
[1645876974458,1.7702752,90.516,90.451,70.54015739]
[1645876979563,16.5901,90.51,90.451,70.54015739]
[1645876979762,1.91921916,90.509,90.451,70.54015739]
[1645876979963,1.91921916,90.509,90.451,22.8909]
[1645876981164,1.91921916,90.509,90.433,4.42]
[1645876981389,110.1,90.499,90.413,4.421]
[1645876981670,16.5918,90.5,90.41,0.28]
[1645876981671,1.7993578,90.496,90.41,0.28]
[1645876981865,4.422,90.495,90.41,0.28]
[1645876982071,111.83428142,90.494,90.41,0.28]
[1645876982267,182.1726411,90.493,90.41,0.28]
[1645876982468,1.70765477,90.49,90.41,0.28]
[1645876982668,180.752,90.489,90.41,0.28]
[1645876982968,1.49793081,90.488,90.41,0.28]
[1645876983168,1.43276273,90.482,90.41,0.28]
[1645876983371,1.53512014,90.478,90.41,0.28]
[1645876983570,1.3984427,90.468,90.41,0.28]
[1645876983772,1.75309066,90.465,90.41,0.28]
[1645876984072,4.422,90.464,90.41,0.28]